[Event "Titled Tuesday Blitz October 31 Early 2023"]
[White "Liyanage, Ranindu Dilshan"]
[Black "Bilan, Danila"]
[WhiteFideId "9915834"]
[BlackFideId "24161918"]
[WhiteElo "2755"]
[BlackElo "2483"]
[Result "0-1"]
[Round "7"]
[TimeControl "180+1"]
[Date "2023.10.31"]
[WhiteClock "0:00:44"]
[BlackClock "0:00:07"]
[Board "67"]

1. c4 {[%clk 0:03:00]}  c6 {[%clk 0:02:58]} 2. Nf3 {[%clk 0:03:00]}  d5 {[%clk 0:02:58]} 3. e3 {[%clk 0:03:01]}  Nf6 {[%clk 0:02:58]} 4. b3 {[%clk 0:03:01]}  Bg4 {[%clk 0:02:52]} 5. Bb2 {[%clk 0:03:02]}  e6 {[%clk 0:02:52]} 6. h3 {[%clk 0:03:01]}  Bh5 {[%clk 0:02:50]} 7. Nc3 {[%clk 0:03:02]}  Nbd7 {[%clk 0:02:49]} 8. Be2 {[%clk 0:03:02]}  Bd6 {[%clk 0:02:47]} 9. O-O {[%clk 0:03:01]}  O-O {[%clk 0:02:45]} 10. d4 {[%clk 0:03:02]}  Qe7 {[%clk 0:02:41]} 11. Qc2 {[%clk 0:02:59]}  Bg6 {[%clk 0:02:12]} 12. Bd3 {[%clk 0:02:57]}  e5 {[%clk 0:02:11]} 13. Bxg6 {[%clk 0:02:49]}  hxg6 {[%clk 0:02:10]} 14. cxd5 {[%clk 0:02:47]}  e4 {[%clk 0:01:33]} 15. dxc6 {[%clk 0:02:29]}  exf3 {[%clk 0:01:29]} 16. cxd7 {[%clk 0:02:29]}  Qxd7 {[%clk 0:01:11]} 17. Ne4 {[%clk 0:02:26]}  fxg2 {[%clk 0:01:02]} 18. Nxf6+ {[%clk 0:02:24]}  gxf6 {[%clk 0:01:03]} 19. Kxg2 {[%clk 0:02:25]}  Kg7 {[%clk 0:00:54]} 20. Qe2 {[%clk 0:02:23]}  Rae8 {[%clk 0:00:46]} 21. Qg4 {[%clk 0:02:18]}  f5 {[%clk 0:00:45]} 22. Qf3 {[%clk 0:02:18]}  Re4 {[%clk 0:00:37]} 23. Rad1 {[%clk 0:02:16]}  Rh8 {[%clk 0:00:29]} 24. Rh1 {[%clk 0:02:16]}  g5 {[%clk 0:00:25]} 25. d5+ {[%clk 0:02:14]}  f6 {[%clk 0:00:25]} 26. Kf1 {[%clk 0:02:01]}  Qb5+ {[%clk 0:00:19]} 27. Qe2 {[%clk 0:02:00]}  Qd7 {[%clk 0:00:16]} 28. Rg1 {[%clk 0:02:00]}  Kg6 {[%clk 0:00:12]} 29. Qf3 {[%clk 0:01:58]}  Qb5+ {[%clk 0:00:10]} 30. Qe2 {[%clk 0:01:55]}  Qd7 {[%clk 0:00:10]} 31. Rh1 {[%clk 0:01:39]}  Reh4 {[%clk 0:00:07]} 32. Qc4 {[%clk 0:01:08]}  Rxc4 {[%clk 0:00:07]} 33. bxc4 {[%clk 0:01:08]}  Qa4 {[%clk 0:00:07]} 34. Rc1 {[%clk 0:01:07]}  g4 {[%clk 0:00:07]} 35. Ke2 {[%clk 0:01:05]}  Qxa2 {[%clk 0:00:07]} 36. Rc2 {[%clk 0:01:06]}  Qb3 {[%clk 0:00:06]} 37. Kd2 {[%clk 0:01:06]}  Bb4+ {[%clk 0:00:06]} 38. Kc1 {[%clk 0:01:06]}  Rxh3 {[%clk 0:00:05]} 39. Rg1 {[%clk 0:01:06]}  Rh2 {[%clk 0:00:04]} 40. Rd1 {[%clk 0:01:04]}  Bd6 {[%clk 0:00:04]} 41. c5 {[%clk 0:01:04]}  Bxc5 {[%clk 0:00:04]} 42. d6 {[%clk 0:00:58]}  Bxd6 {[%clk 0:00:03]} 43. Rxd6 {[%clk 0:00:59]}  Rh1+ {[%clk 0:00:04]} 44. Rd1 {[%clk 0:00:55]}  Rxd1+ {[%clk 0:00:04]} 45. Kxd1 {[%clk 0:00:56]}  a5 {[%clk 0:00:04]} 46. Kc1 {[%clk 0:00:53]}  a4 {[%clk 0:00:04]} 47. Rc3 {[%clk 0:00:54]}  Qb5 {[%clk 0:00:03]} 48. Kb1 {[%clk 0:00:50]}  Qf1+ {[%clk 0:00:04]} 49. Ka2 {[%clk 0:00:50]}  Qxf2 {[%clk 0:00:04]} 50. Rc7 {[%clk 0:00:47]}  g3 {[%clk 0:00:04]} 51. Rxb7 {[%clk 0:00:44]}  g2 {[%clk 0:00:05]} 52. Rb6 {[%clk 0:00:45]}  g1=Q {[%clk 0:00:05]} 53. Rxf6+ {[%clk 0:00:45]}  Kg5 {[%clk 0:00:06]} 54. Rf8 {[%clk 0:00:46]}  Qgf1 {[%clk 0:00:06]} 55. Rg8+ {[%clk 0:00:46]}  Kh5 {[%clk 0:00:06]} 56. Rh8+ {[%clk 0:00:46]}  Kg4 {[%clk 0:00:06]} 57. Rg8+ {[%clk 0:00:47]}  Kf3 {[%clk 0:00:07]} 58. Rc8 {[%clk 0:00:44]}  Qb5 {[%clk 0:00:07]} 0-1


[Site "https://www.chess.com"]

[Event "Titled Tuesday Blitz October 31 Early 2023"]
[White "Mekhitarian, Krikor Sevag"]
[Black "LouieKov2022"]
[WhiteFideId "2107660"]
[WhiteElo "2751"]
[BlackElo "2480"]
[Result "1-0"]
[Round "7"]
[TimeControl "180+1"]
[Date "2023.10.31"]
[WhiteClock "0:00:04"]
[BlackClock "0:00:00"]
[Board "68"]

1. Nf3 {[%clk 0:02:52]}  Nf6 {[%clk 0:02:59]} 2. c4 {[%clk 0:02:51]}  c6 {[%clk 0:02:59]} 3. d4 {[%clk 0:02:50]}  d5 {[%clk 0:03:00]} 4. Nc3 {[%clk 0:02:51]}  e6 {[%clk 0:02:59]} 5. cxd5 {[%clk 0:02:50]}  exd5 {[%clk 0:02:59]} 6. Bf4 {[%clk 0:02:51]}  Bd6 {[%clk 0:02:59]} 7. Bxd6 {[%clk 0:02:52]}  Qxd6 {[%clk 0:03:00]} 8. e3 {[%clk 0:02:53]}  Bf5 {[%clk 0:02:58]} 9. Nh4 {[%clk 0:02:53]}  Be6 {[%clk 0:02:53]} 10. Bd3 {[%clk 0:02:50]}  O-O {[%clk 0:02:51]} 11. Qb3 {[%clk 0:02:50]}  b5 {[%clk 0:02:51]} 12. Rc1 {[%clk 0:02:50]}  Nbd7 {[%clk 0:02:51]} 13. Qc2 {[%clk 0:02:49]}  Nb6 {[%clk 0:02:49]} 14. O-O {[%clk 0:02:47]}  a5 {[%clk 0:02:50]} 15. h3 {[%clk 0:02:46]}  a4 {[%clk 0:02:50]} 16. Ne2 {[%clk 0:02:44]}  Rfc8 {[%clk 0:02:47]} 17. Qc5 {[%clk 0:02:42]}  Qb8 {[%clk 0:02:45]} 18. b3 {[%clk 0:02:42]}  axb3 {[%clk 0:02:44]} 19. axb3 {[%clk 0:02:43]}  Nbd7 {[%clk 0:02:40]} 20. Qc2 {[%clk 0:02:43]}  b4 {[%clk 0:02:38]} 21. Nf4 {[%clk 0:02:37]}  Ra3 {[%clk 0:02:35]} 22. Nf3 {[%clk 0:02:32]}  c5 {[%clk 0:02:34]} 23. Ng5 {[%clk 0:02:25]}  Qd6 {[%clk 0:02:28]} 24. Bxh7+ {[%clk 0:02:23]}  Kf8 {[%clk 0:02:27]} 25. Bf5 {[%clk 0:02:00]}  Bxf5 {[%clk 0:02:22]} 26. Qxf5 {[%clk 0:02:00]}  c4 {[%clk 0:02:20]} 27. Nh7+ {[%clk 0:01:43]}  Nxh7 {[%clk 0:02:14]} 28. Qxh7 {[%clk 0:01:44]}  Nf6 {[%clk 0:02:14]} 29. Qf5 {[%clk 0:01:02]}  Rc7 {[%clk 0:02:00]} 30. Qe5 {[%clk 0:01:00]}  Qd8 {[%clk 0:01:51]} 31. bxc4 {[%clk 0:00:55]}  dxc4 {[%clk 0:01:50]} 32. Qb5 {[%clk 0:00:55]}  Qd6 {[%clk 0:01:39]} 33. Rxc4 {[%clk 0:00:53]}  Rxc4 {[%clk 0:01:29]} 34. Qxc4 {[%clk 0:00:53]}  Rc3 {[%clk 0:01:30]} 35. Qb5 {[%clk 0:00:51]}  b3 {[%clk 0:01:30]} 36. Rb1 {[%clk 0:00:50]}  Qa3 {[%clk 0:01:23]} 37. Kh2 {[%clk 0:00:25]}  g6 {[%clk 0:01:02]} 38. Qb8+ {[%clk 0:00:24]}  Kg7 {[%clk 0:01:01]} 39. Qe5 {[%clk 0:00:25]}  Qa2 {[%clk 0:00:50]} 40. Nd5 {[%clk 0:00:24]}  Rc6 {[%clk 0:00:50]} 41. Nxf6 {[%clk 0:00:10]}  Qxb1 {[%clk 0:00:16]} 42. Nd7+ {[%clk 0:00:08]}  Kh7 {[%clk 0:00:12]} 43. Nf8+ {[%clk 0:00:04]}  Kg8 {[%clk 0:00:11]} 44. Qe8 {[%clk 0:00:05]}  Kg7 {[%clk 0:00:07]} 45. Qxc6 {[%clk 0:00:03]}  b2 {[%clk 0:00:06]} 46. Nd7 {[%clk 0:00:02]}  Qc1 {[%clk 0:00:06]} 47. Qf6+ {[%clk 0:00:02]}  Kg8 {[%clk 0:00:06]} 48. Qd8+ {[%clk 0:00:02]}  Kh7 {[%clk 0:00:06]} 49. Qe7 {[%clk 0:00:02]}  b1=Q {[%clk 0:00:05]} 50. Qxf7+ {[%clk 0:00:03]}  Kh6 {[%clk 0:00:06]} 51. Qf4+ {[%clk 0:00:02]}  Kh7 {[%clk 0:00:05]} 52. Qf7+ {[%clk 0:00:02]}  Kh6 {[%clk 0:00:05]} 53. Ne5 {[%clk 0:00:02]}  Qf5 {[%clk 0:00:03]} 54. Qxf5 {[%clk 0:00:01]}  gxf5 {[%clk 0:00:04]} 55. Kg3 {[%clk 0:00:02]}  Kg5 {[%clk 0:00:05]} 56. Nf3+ {[%clk 0:00:02]}  Kf6 {[%clk 0:00:05]} 57. Ne5 {[%clk 0:00:03]}  Qc7 {[%clk 0:00:05]} 58. Kf3 {[%clk 0:00:02]}  Qg7 {[%clk 0:00:06]} 59. g3 {[%clk 0:00:02]}  Qh6 {[%clk 0:00:06]} 60. h4 {[%clk 0:00:02]}  Qh5+ {[%clk 0:00:06]} 61. Kg2 {[%clk 0:00:03]}  Ke6 {[%clk 0:00:06]} 62. Nd3 {[%clk 0:00:03]}  Qg4 {[%clk 0:00:05]} 63. Nf4+ {[%clk 0:00:04]}  Kf6 {[%clk 0:00:05]} 64. Nh3 {[%clk 0:00:05]}  Qe4+ {[%clk 0:00:04]} 65. Kh2 {[%clk 0:00:05]}  Qc2 {[%clk 0:00:05]} 66. Kg2 {[%clk 0:00:05]}  Qd1 {[%clk 0:00:06]} 67. Nf4 {[%clk 0:00:06]}  Kf7 {[%clk 0:00:04]} 68. Kh2 {[%clk 0:00:05]}  Kg7 {[%clk 0:00:04]} 69. Kg2 {[%clk 0:00:05]}  Kh6 {[%clk 0:00:05]} 70. Nh3 {[%clk 0:00:05]}  Kh5 {[%clk 0:00:04]} 71. Nf4+ {[%clk 0:00:05]}  Kg4 {[%clk 0:00:05]} 72. Nh3 {[%clk 0:00:06]}  Qf3+ {[%clk 0:00:05]} 73. Kh2 {[%clk 0:00:05]}  Qe2 {[%clk 0:00:04]} 74. Kg2 {[%clk 0:00:05]}  Qf3+ {[%clk 0:00:04]} 75. Kh2 {[%clk 0:00:05]}  Qe4 {[%clk 0:00:05]} 76. Ng1 {[%clk 0:00:05]}  Qc2 {[%clk 0:00:05]} 77. Kg2 {[%clk 0:00:06]}  Qd2 {[%clk 0:00:05]} 78. Nh3 {[%clk 0:00:05]}  Qe2 {[%clk 0:00:05]} 79. Ng1 {[%clk 0:00:04]}  Qd2 {[%clk 0:00:04]} 80. Nf3 {[%clk 0:00:03]}  Qc2 {[%clk 0:00:03]} 81. Ne5+ {[%clk 0:00:04]}  Kh5 {[%clk 0:00:03]} 82. Kg1 {[%clk 0:00:03]}  Qe4 {[%clk 0:00:03]} 83. Kh2 {[%clk 0:00:03]}  f4 {[%clk 0:00:03]} 84. gxf4 {[%clk 0:00:01]}  Kxh4 {[%clk 0:00:03]} 85. Kg1 {[%clk 0:00:01]}  Kh3 {[%clk 0:00:03]} 86. Kf1 {[%clk 0:00:02]}  Qc2 {[%clk 0:00:01]} 87. Nf3 {[%clk 0:00:02]}  Qd1+ {[%clk 0:00:01]} 88. Ne1 {[%clk 0:00:02]}  Kg4 {[%clk 0:00:02]} 89. d5 {[%clk 0:00:01]}  Qxd5 {[%clk 0:00:01]} 90. Ke2 {[%clk 0:00:02]}  Qc4+ {[%clk 0:00:02]} 91. Kd2 {[%clk 0:00:02]}  Qa2+ {[%clk 0:00:03]} 92. Kd3 {[%clk 0:00:02]}  Qb1+ {[%clk 0:00:03]} 93. Nc2 {[%clk 0:00:03]}  Qd1+ {[%clk 0:00:03]} 94. Kc3 {[%clk 0:00:03]}  Qe2 {[%clk 0:00:03]} 95. Nd4 {[%clk 0:00:02]}  Qxf2 {[%clk 0:00:03]} 96. Kd3 {[%clk 0:00:03]}  Qa2 {[%clk 0:00:02]} 97. Ke4 {[%clk 0:00:03]}  Qc4 {[%clk 0:00:01]} 98. Ke5 {[%clk 0:00:04]}  Qd3 {[%clk 0:00:02]} 99. e4 {[%clk 0:00:03]}  Qd2 {[%clk 0:00:03]} 100. Ne6 {[%clk 0:00:04]}  Qb2+ {[%clk 0:00:02]} 101. Kd5 {[%clk 0:00:04]}  Qb5+ {[%clk 0:00:01]} 102. Kd6 {[%clk 0:00:05]}  Qb6+ {[%clk 0:00:01]} 103. Ke5 {[%clk 0:00:06]}  Qb7 {[%clk 0:00:02]} 104. f5 {[%clk 0:00:06]}  Qe7 {[%clk 0:00:02]} 105. Kd5 {[%clk 0:00:06]}  Qf6 {[%clk 0:00:02]} 106. Nd4 {[%clk 0:00:07]}  Kf4 {[%clk 0:00:02]} 107. Ne6+ {[%clk 0:00:07]}  Kf3 {[%clk 0:00:02]} 108. Nc5 {[%clk 0:00:08]}  Qf7+ {[%clk 0:00:02]} 109. Ne6 {[%clk 0:00:07]}  Qd7+ {[%clk 0:00:02]} 110. Ke5 {[%clk 0:00:08]}  Qb5+ {[%clk 0:00:02]} 111. Kf6 {[%clk 0:00:08]}  Kxe4 {[%clk 0:00:03]} 112. Ng5+ {[%clk 0:00:08]}  Kf4 {[%clk 0:00:03]} 113. Ne6+ {[%clk 0:00:09]}  Kg4 {[%clk 0:00:03]} 114. Ng7 {[%clk 0:00:08]}  Qb2+ {[%clk 0:00:03]} 115. Kg6 {[%clk 0:00:08]}  Qb7 {[%clk 0:00:02]} 116. f6 {[%clk 0:00:08]}  Qc6 {[%clk 0:00:01]} 117. Kf7 {[%clk 0:00:05]}  Qd7+ {[%clk 0:00:01]} 118. Kg6 {[%clk 0:00:05]}  Kf4 {[%clk 0:00:00]} 119. f7 {[%clk 0:00:04]} 1-0


[Site "https://www.chess.com"]

[Event "Titled Tuesday Blitz October 31 Early 2023"]
[White "Kopczynski, Michal"]
[Black "Korchmar, Vasiliy"]
[WhiteFideId "1124200"]
[BlackFideId "24131750"]
[WhiteElo "2482"]
[BlackElo "2746"]
[Result "1-0"]
[Round "7"]
[TimeControl "180+1"]
[Date "2023.10.31"]
[WhiteClock "0:00:25"]
[BlackClock "0:02:00"]
[Board "69"]

1. e4 {[%clk 0:03:00]}  c5 {[%clk 0:03:00]} 2. d4 {[%clk 0:03:00]}  d6 {[%clk 0:03:00]} 3. dxc5 {[%clk 0:03:00]}  Qa5+ {[%clk 0:03:00]} 4. Nc3 {[%clk 0:03:00]}  Qxc5 {[%clk 0:03:00]} 5. Be3 {[%clk 0:03:01]}  Qb4 {[%clk 0:02:59]} 6. Qd2 {[%clk 0:03:00]}  g6 {[%clk 0:02:56]} 7. e5 {[%clk 0:02:50]}  dxe5 {[%clk 0:02:51]} 8. O-O-O {[%clk 0:02:49]}  Nc6 {[%clk 0:02:50]} 9. Nb5 {[%clk 0:02:06]}  Qxd2+ {[%clk 0:02:38]} 10. Rxd2 {[%clk 0:02:07]}  Bd7 {[%clk 0:02:25]} 11. Nc7+ {[%clk 0:02:05]}  Kd8 {[%clk 0:02:25]} 12. Nxa8 {[%clk 0:02:05]}  Nf6 {[%clk 0:02:25]} 13. Bb5 {[%clk 0:01:59]}  Kc8 {[%clk 0:02:24]} 14. Nf3 {[%clk 0:01:29]}  Kb8 {[%clk 0:02:03]} 15. Rhd1 {[%clk 0:01:09]}  Bc8 {[%clk 0:01:59]} 16. Bxc6 {[%clk 0:01:01]}  bxc6 {[%clk 0:02:00]} 17. Rd8 {[%clk 0:00:52]}  Nd5 {[%clk 0:02:00]} 18. Nxe5 {[%clk 0:00:32]}  Bg7 {[%clk 0:02:01]} 19. Rxh8 {[%clk 0:00:30]}  Bxh8 {[%clk 0:02:02]} 20. Nxc6+ {[%clk 0:00:31]}  Kxa8 {[%clk 0:02:02]} 21. Rxd5 {[%clk 0:00:30]}  Be6 {[%clk 0:02:03]} 22. Rd8+ {[%clk 0:00:30]}  Kb7 {[%clk 0:02:00]} 23. Rxh8 {[%clk 0:00:25]} 1-0


[Site "https://www.chess.com"]

[Event "Titled Tuesday Blitz October 31 Early 2023"]
[White "Shuvalov, Evgenij"]
[Black "Weetik, Vjacheslav"]
[WhiteFideId "4187237"]
[BlackFideId "4153472"]
[WhiteElo "2469"]
[BlackElo "2727"]
[Result "0-1"]
[Round "7"]
[TimeControl "180+1"]
[Date "2023.10.31"]
[WhiteClock "0:00:04"]
[BlackClock "0:00:07"]
[Board "70"]

1. e4 {[%clk 0:03:00]}  c6 {[%clk 0:02:55]} 2. d4 {[%clk 0:03:00]}  d5 {[%clk 0:02:55]} 3. exd5 {[%clk 0:03:00]}  cxd5 {[%clk 0:02:55]} 4. c4 {[%clk 0:03:01]}  Nf6 {[%clk 0:02:55]} 5. Nc3 {[%clk 0:03:00]}  e6 {[%clk 0:02:56]} 6. Nf3 {[%clk 0:02:55]}  Be7 {[%clk 0:02:55]} 7. cxd5 {[%clk 0:02:54]}  Nxd5 {[%clk 0:02:54]} 8. Bd3 {[%clk 0:02:54]}  Nc6 {[%clk 0:02:49]} 9. O-O {[%clk 0:02:53]}  O-O {[%clk 0:02:48]} 10. Re1 {[%clk 0:02:53]}  Nf6 {[%clk 0:02:45]} 11. a3 {[%clk 0:02:38]}  b6 {[%clk 0:02:45]} 12. Bc2 {[%clk 0:02:18]}  Ba6 {[%clk 0:02:44]} 13. h4 {[%clk 0:02:10]}  Rc8 {[%clk 0:02:40]} 14. h5 {[%clk 0:02:10]}  Nxh5 {[%clk 0:02:26]} 15. b4 {[%clk 0:01:45]}  Nf6 {[%clk 0:01:49]} 16. b5 {[%clk 0:01:40]}  Na5 {[%clk 0:01:49]} 17. bxa6 {[%clk 0:01:32]}  Rxc3 {[%clk 0:01:49]} 18. Bd2 {[%clk 0:01:30]}  Rc8 {[%clk 0:01:41]} 19. Bxa5 {[%clk 0:01:29]}  bxa5 {[%clk 0:01:42]} 20. Ne5 {[%clk 0:01:28]}  Qb6 {[%clk 0:01:33]} 21. Qd3 {[%clk 0:01:25]}  Rfd8 {[%clk 0:01:28]} 22. Rad1 {[%clk 0:01:10]}  g6 {[%clk 0:01:24]} 23. Bb3 {[%clk 0:01:02]}  Nd5 {[%clk 0:01:16]} 24. Qf3 {[%clk 0:00:58]}  f6 {[%clk 0:00:58]} 25. Ng4 {[%clk 0:00:42]}  Rc3 {[%clk 0:00:54]} 26. Rd3 {[%clk 0:00:39]}  Qxb3 {[%clk 0:00:50]} 27. Qe4 {[%clk 0:00:20]}  Rxd3 {[%clk 0:00:39]} 28. Qxe6+ {[%clk 0:00:20]}  Kg7 {[%clk 0:00:40]} 29. Ne3 {[%clk 0:00:16]}  Bf8 {[%clk 0:00:26]} 30. Ng4 {[%clk 0:00:15]}  h5 {[%clk 0:00:16]} 31. Ne5 {[%clk 0:00:13]}  fxe5 {[%clk 0:00:16]} 32. Qxe5+ {[%clk 0:00:14]}  Nf6 {[%clk 0:00:15]} 33. Qc7+ {[%clk 0:00:11]}  Qf7 {[%clk 0:00:15]} 34. Qxd8 {[%clk 0:00:11]}  Rxa3 {[%clk 0:00:10]} 35. Rb1 {[%clk 0:00:09]}  Be7 {[%clk 0:00:07]} 36. Qb8 {[%clk 0:00:09]}  Ng4 {[%clk 0:00:06]} 37. f3 {[%clk 0:00:08]}  Ra2 {[%clk 0:00:03]} 38. Qg3 {[%clk 0:00:07]}  Ne3 {[%clk 0:00:03]} 39. Qe5+ {[%clk 0:00:06]}  Bf6 {[%clk 0:00:02]} 40. Qxe3 {[%clk 0:00:07]}  Ra4 {[%clk 0:00:03]} 41. Rd1 {[%clk 0:00:06]}  Qd5 {[%clk 0:00:03]} 42. Qe2 {[%clk 0:00:05]}  Rxd4 {[%clk 0:00:03]} 43. Rxd4 {[%clk 0:00:04]}  Qxd4+ {[%clk 0:00:04]} 44. Kh1 {[%clk 0:00:05]}  h4 {[%clk 0:00:03]} 45. Qb5 {[%clk 0:00:03]}  Be5 {[%clk 0:00:03]} 46. Qb7+ {[%clk 0:00:03]}  Kh6 {[%clk 0:00:04]} 47. Qb1 {[%clk 0:00:01]}  Bf4 {[%clk 0:00:04]} 48. Qf1 {[%clk 0:00:02]}  Qc3 {[%clk 0:00:04]} 49. Qb1 {[%clk 0:00:02]}  Qc1+ {[%clk 0:00:05]} 50. Qxc1 {[%clk 0:00:03]}  Bxc1 {[%clk 0:00:05]} 51. Kh2 {[%clk 0:00:03]}  a4 {[%clk 0:00:05]} 52. Kh3 {[%clk 0:00:04]}  a3 {[%clk 0:00:06]} 53. Kxh4 {[%clk 0:00:05]}  a2 {[%clk 0:00:06]} 54. g4 {[%clk 0:00:04]}  a1=Q {[%clk 0:00:07]} 0-1


[Site "https://www.chess.com"]

[Event "Titled Tuesday Blitz October 31 Early 2023"]
[White "Buchenau, Frank"]
[Black "Jakubowski, Krzysztof"]
[WhiteFideId "4604350"]
[BlackFideId "1112848"]
[WhiteElo "2463"]
[BlackElo "2677"]
[Result "1-0"]
[Round "7"]
[TimeControl "180+1"]
[Date "2023.10.31"]
[WhiteClock "0:00:05"]
[BlackClock "0:01:16"]
[Board "71"]

1. e4 {[%clk 0:02:56]}  c5 {[%clk 0:02:59]} 2. Nf3 {[%clk 0:02:55]}  e6 {[%clk 0:03:00]} 3. d4 {[%clk 0:02:55]}  cxd4 {[%clk 0:03:00]} 4. Nxd4 {[%clk 0:02:55]}  a6 {[%clk 0:03:00]} 5. Bd3 {[%clk 0:02:54]}  Bc5 {[%clk 0:02:59]} 6. Nb3 {[%clk 0:02:51]}  Ba7 {[%clk 0:02:59]} 7. O-O {[%clk 0:02:51]}  Ne7 {[%clk 0:02:56]} 8. c4 {[%clk 0:02:49]}  Nbc6 {[%clk 0:02:56]} 9. Qe2 {[%clk 0:02:45]}  O-O {[%clk 0:02:55]} 10. Be3 {[%clk 0:02:43]}  b6 {[%clk 0:02:55]} 11. Nc3 {[%clk 0:02:41]}  f5 {[%clk 0:02:55]} 12. f4 {[%clk 0:02:13]}  fxe4 {[%clk 0:02:50]} 13. Bxe4 {[%clk 0:02:06]}  Bb7 {[%clk 0:02:45]} 14. Rad1 {[%clk 0:02:04]}  Nf5 {[%clk 0:02:42]} 15. Bf2 {[%clk 0:01:59]}  Qe8 {[%clk 0:02:38]} 16. Qd3 {[%clk 0:01:51]}  Rd8 {[%clk 0:02:35]} 17. Rfe1 {[%clk 0:01:47]}  h5 {[%clk 0:02:30]} 18. Bxf5 {[%clk 0:01:39]}  Rxf5 {[%clk 0:02:28]} 19. Qxf5 {[%clk 0:01:39]}  exf5 {[%clk 0:02:28]} 20. Rxe8+ {[%clk 0:01:39]}  Rxe8 {[%clk 0:02:29]} 21. Rxd7 {[%clk 0:01:37]}  Ba8 {[%clk 0:02:06]} 22. Nd5 {[%clk 0:01:26]}  Re2 {[%clk 0:01:52]} 23. Nd4 {[%clk 0:01:15]}  Rxb2 {[%clk 0:01:43]} 24. Nxc6 {[%clk 0:01:04]}  Bxc6 {[%clk 0:01:37]} 25. Ne7+ {[%clk 0:00:59]}  Kh7 {[%clk 0:01:36]} 26. Nxc6 {[%clk 0:00:59]}  Rb1+ {[%clk 0:01:34]} 27. Be1 {[%clk 0:00:59]}  b5+ {[%clk 0:01:30]} 28. Rxa7 {[%clk 0:00:51]}  Rxe1+ {[%clk 0:01:25]} 29. Kf2 {[%clk 0:00:51]}  Ra1 {[%clk 0:01:26]} 30. cxb5 {[%clk 0:00:44]}  axb5 {[%clk 0:01:24]} 31. Ra5 {[%clk 0:00:39]}  Rc1 {[%clk 0:01:21]} 32. Nd4 {[%clk 0:00:36]}  b4 {[%clk 0:01:19]} 33. Rxf5 {[%clk 0:00:29]}  Rd1 {[%clk 0:01:16]} 34. Nf3 {[%clk 0:00:19]}  Ra1 {[%clk 0:01:14]} 35. Rxh5+ {[%clk 0:00:16]}  Kg8 {[%clk 0:01:15]} 36. Rb5 {[%clk 0:00:11]}  Rxa2+ {[%clk 0:01:14]} 37. Kg3 {[%clk 0:00:12]}  Rb2 {[%clk 0:01:15]} 38. h4 {[%clk 0:00:10]}  g6 {[%clk 0:01:16]} 39. Kh3 {[%clk 0:00:09]}  b3 {[%clk 0:01:16]} 40. Nd4 {[%clk 0:00:09]}  Rf2 {[%clk 0:01:15]} 41. Nxb3 {[%clk 0:00:07]}  Rxf4 {[%clk 0:01:15]} 42. g3 {[%clk 0:00:07]}  Rf1 {[%clk 0:01:15]} 43. Nd4 {[%clk 0:00:07]}  Kg7 {[%clk 0:01:15]} 44. Kg4 {[%clk 0:00:07]}  Ra1 {[%clk 0:01:15]} 45. Rb7+ {[%clk 0:00:06]}  Kh6 {[%clk 0:01:16]} 46. Nf3 {[%clk 0:00:06]}  Ra4+ {[%clk 0:01:16]} 47. Kh3 {[%clk 0:00:06]}  Ra5 {[%clk 0:01:17]} 48. Ng5 {[%clk 0:00:05]}  Ra7 {[%clk 0:01:16]} 49. Rxa7 {[%clk 0:00:05]}  Kh5 {[%clk 0:01:16]} 50. Rh7# {[%clk 0:00:05]} 1-0


[Site "https://www.chess.com"]

[Event "Titled Tuesday Blitz October 31 Early 2023"]
[White "Herman, Daniel"]
[Black "Sadykov, Ramil"]
[WhiteFideId "30935008"]
[BlackFideId "24113590"]
[WhiteElo "2453"]
[BlackElo "2660"]
[Result "0-1"]
[Round "7"]
[TimeControl "180+1"]
[Date "2023.10.31"]
[WhiteClock "0:00:00"]
[BlackClock "0:00:20"]
[Board "73"]

1. e4 {[%clk 0:03:00]}  c6 {[%clk 0:02:57]} 2. d4 {[%clk 0:02:58]}  d5 {[%clk 0:02:57]} 3. e5 {[%clk 0:02:59]}  Bf5 {[%clk 0:02:56]} 4. Nf3 {[%clk 0:02:59]}  e6 {[%clk 0:02:56]} 5. Be2 {[%clk 0:02:59]}  c5 {[%clk 0:02:53]} 6. O-O {[%clk 0:02:59]}  Nc6 {[%clk 0:02:45]} 7. c3 {[%clk 0:02:57]}  Qb6 {[%clk 0:02:41]} 8. Na3 {[%clk 0:02:49]}  a6 {[%clk 0:02:37]} 9. dxc5 {[%clk 0:02:32]}  Bxc5 {[%clk 0:02:35]} 10. b4 {[%clk 0:02:31]}  Be7 {[%clk 0:02:34]} 11. Nc2 {[%clk 0:02:18]}  Rc8 {[%clk 0:02:21]} 12. Ncd4 {[%clk 0:02:05]}  Be4 {[%clk 0:02:12]} 13. Be3 {[%clk 0:02:00]}  Qc7 {[%clk 0:02:06]} 14. Nxc6 {[%clk 0:01:58]}  Qxc6 {[%clk 0:01:59]} 15. Nd4 {[%clk 0:01:53]}  Qc7 {[%clk 0:01:54]} 16. Qa4+ {[%clk 0:01:32]}  Qd7 {[%clk 0:01:42]} 17. Qb3 {[%clk 0:00:59]}  Nh6 {[%clk 0:01:34]} 18. Bxh6 {[%clk 0:00:57]}  gxh6 {[%clk 0:01:35]} 19. f4 {[%clk 0:00:47]}  Qc7 {[%clk 0:01:23]} 20. Rac1 {[%clk 0:00:46]}  O-O {[%clk 0:01:13]} 21. Bf3 {[%clk 0:00:46]}  Bxf3 {[%clk 0:01:07]} 22. Rxf3 {[%clk 0:00:45]}  Kh8 {[%clk 0:01:08]} 23. Rh3 {[%clk 0:00:41]}  Qc4 {[%clk 0:00:49]} 24. Qd1 {[%clk 0:00:10]}  Rg8 {[%clk 0:00:34]} 25. Rxh6 {[%clk 0:00:09]}  Rg7 {[%clk 0:00:33]} 26. Rc2 {[%clk 0:00:03]}  a5 {[%clk 0:00:24]} 27. f5 {[%clk 0:00:03]}  Bg5 {[%clk 0:00:21]} 28. Rh5 {[%clk 0:00:03]}  Be3+ {[%clk 0:00:20]} 29. Kh1 {[%clk 0:00:03]}  Bxd4 {[%clk 0:00:21]} 30. f6 {[%clk 0:00:00]}  Rg6 {[%clk 0:00:20]} 0-1


[Site "https://www.chess.com"]